[Event "Titled Tuesday Blitz March 08 Early 2022"]
[White "Mohammadian, Mohammad"]
[Black "Krylov, Ivan"]
[WhiteFideId "12566055"]
[BlackFideId "24128066"]
[WhiteElo "1544"]
[BlackElo "2258"]
[Result "0-1"]
[Round "09"]
[TimeControl "180+1"]
[Date "2022.03.09"]
[WhiteClock "0:00:51"]
[BlackClock "0:01:38"]

1. e4 {[%clk 0:03:00]}  c6 {[%clk 0:03:00]} 2. d4 {[%clk 0:02:58]}  d5 {[%clk 0:03:01]} 3. Nd2 {[%clk 0:02:58]}  dxe4 {[%clk 0:03:01]} 4. Nxe4 {[%clk 0:02:58]}  Nd7 {[%clk 0:03:02]} 5. Nf3 {[%clk 0:02:56]}  Ndf6 {[%clk 0:03:02]} 6. Ng3 {[%clk 0:02:53]}  Bg4 {[%clk 0:03:02]} 7. Be2 {[%clk 0:02:52]}  e6 {[%clk 0:03:02]} 8. O-O {[%clk 0:02:49]}  Bd6 {[%clk 0:03:02]} 9. c4 {[%clk 0:02:49]}  Ne7 {[%clk 0:03:01]} 10. Bg5 {[%clk 0:02:44]}  h6 {[%clk 0:03:00]} 11. Bxf6 {[%clk 0:02:43]}  gxf6 {[%clk 0:03:00]} 12. Re1 {[%clk 0:02:41]}  Qc7 {[%clk 0:02:57]} 13. Rc1 {[%clk 0:02:37]}  O-O-O {[%clk 0:02:54]} 14. a3 {[%clk 0:02:34]}  Bxg3 {[%clk 0:02:50]} 15. hxg3 {[%clk 0:02:29]}  h5 {[%clk 0:02:50]} 16. d5 {[%clk 0:02:25]}  exd5 {[%clk 0:02:48]} 17. cxd5 {[%clk 0:02:24]}  Rxd5 {[%clk 0:02:46]} 18. Qa4 {[%clk 0:02:16]}  Kb8 {[%clk 0:02:44]} 19. b4 {[%clk 0:02:07]}  Bxf3 {[%clk 0:02:32]} 20. Bxf3 {[%clk 0:02:05]}  Rb5 {[%clk 0:02:27]} 21. Be2 {[%clk 0:01:45]}  Rb6 {[%clk 0:02:21]} 22. Bf3 {[%clk 0:01:41]}  Rb5 {[%clk 0:02:20]} 23. Rc2 {[%clk 0:01:36]}  Re5 {[%clk 0:01:59]} 24. Rec1 {[%clk 0:01:32]}  Qb6 {[%clk 0:01:58]} 25. Qb3 {[%clk 0:01:17]}  Re6 {[%clk 0:01:52]} 26. Rd1 {[%clk 0:01:05]}  h4 {[%clk 0:01:48]} 27. gxh4 {[%clk 0:01:00]}  Rxh4 {[%clk 0:01:40]} 28. Rd7 {[%clk 0:00:51]}  Re1# {[%clk 0:01:38]} 0-1


[Site "https://www.chess.com"]

[Event "Titled Tuesday Blitz March 08 Early 2022"]
[White "Molina, Roberto Junio Brito"]
[Black "Avila Pavas, Santiago"]
[WhiteFideId "2109450"]
[BlackFideId "4437128"]
[WhiteElo "2432"]
[BlackElo "2242"]
[Result "1-0"]
[Round "09"]
[TimeControl "180+1"]
[Date "2022.03.08"]
[WhiteClock "0:01:11"]
[BlackClock "0:00:04"]

1. d4 {[%clk 0:03:00]}  Nf6 {[%clk 0:02:51]} 2. c4 {[%clk 0:03:01]}  c5 {[%clk 0:02:50]} 3. d5 {[%clk 0:03:01]}  b5 {[%clk 0:02:51]} 4. cxb5 {[%clk 0:03:02]}  a6 {[%clk 0:02:50]} 5. b6 {[%clk 0:03:02]}  e6 {[%clk 0:02:49]} 6. Nc3 {[%clk 0:03:02]}  Nxd5 {[%clk 0:02:49]} 7. Nxd5 {[%clk 0:03:02]}  exd5 {[%clk 0:02:50]} 8. Qxd5 {[%clk 0:03:03]}  Nc6 {[%clk 0:02:51]} 9. e3 {[%clk 0:03:03]}  Be7 {[%clk 0:02:51]} 10. Nf3 {[%clk 0:03:03]}  O-O {[%clk 0:02:51]} 11. Bc4 {[%clk 0:03:03]}  Rb8 {[%clk 0:02:51]} 12. O-O {[%clk 0:03:03]}  Rxb6 {[%clk 0:02:52]} 13. b3 {[%clk 0:03:00]}  Bb7 {[%clk 0:02:52]} 14. Qd2 {[%clk 0:02:57]}  Nb4 {[%clk 0:02:38]} 15. Be2 {[%clk 0:02:57]}  Rg6 {[%clk 0:02:33]} 16. Bb2 {[%clk 0:02:54]}  Qa8 {[%clk 0:02:25]} 17. Kh1 {[%clk 0:02:45]}  Nd5 {[%clk 0:02:09]} 18. Rad1 {[%clk 0:02:28]}  Bf6 {[%clk 0:01:58]} 19. Rg1 {[%clk 0:02:16]}  Bxb2 {[%clk 0:01:33]} 20. Qxb2 {[%clk 0:02:16]}  Nf6 {[%clk 0:01:34]} 21. Ne1 {[%clk 0:02:15]}  Rh6 {[%clk 0:00:44]} 22. f3 {[%clk 0:02:12]}  Re8 {[%clk 0:00:39]} 23. e4 {[%clk 0:02:08]}  d5 {[%clk 0:00:39]} 24. exd5 {[%clk 0:02:08]}  Nxd5 {[%clk 0:00:39]} 25. Bc4 {[%clk 0:02:04]}  Qb8 {[%clk 0:00:26]} 26. g3 {[%clk 0:02:04]}  Ne3 {[%clk 0:00:21]} 27. Rd2 {[%clk 0:01:59]}  Ng4 {[%clk 0:00:12]} 28. Rdg2 {[%clk 0:01:32]}  Ne5 {[%clk 0:00:06]} 29. Be2 {[%clk 0:01:30]}  Rhe6 {[%clk 0:00:04]} 30. Rf2 {[%clk 0:01:30]}  Ng6 {[%clk 0:00:04]} 31. Qd2 {[%clk 0:01:27]}  Qa8 {[%clk 0:00:03]} 32. Bc4 {[%clk 0:01:25]}  R6e7 {[%clk 0:00:02]} 33. Rgf1 {[%clk 0:01:21]}  Ne5 {[%clk 0:00:02]} 34. Be2 {[%clk 0:01:22]}  Rd7 {[%clk 0:00:02]} 35. Qf4 {[%clk 0:01:21]}  Rde7 {[%clk 0:00:02]} 36. Kg1 {[%clk 0:01:21]}  Ng6 {[%clk 0:00:03]} 37. Qd2 {[%clk 0:01:21]}  Rd8 {[%clk 0:00:03]} 38. Qc3 {[%clk 0:01:18]}  Rde8 {[%clk 0:00:04]} 39. Bc4 {[%clk 0:01:13]}  Ne5 {[%clk 0:00:04]} 40. Be2 {[%clk 0:01:13]}  Nc6 {[%clk 0:00:04]} 41. Bd1 {[%clk 0:01:11]}  Nd4 {[%clk 0:00:05]} 42. Qd2 {[%clk 0:01:12]}  Re2 {[%clk 0:00:04]} 43. Bxe2 {[%clk 0:01:11]} 1-0


[Site "https://www.chess.com"]

[Event "Titled Tuesday Blitz March 08 Early 2022"]
[White "Omelja, Artem"]
[Black "Fernandez Siles, Luis"]
[WhiteFideId "14119846"]
[BlackFideId "2209420"]
[WhiteElo "2382"]
[BlackElo "2212"]
[Result "1-0"]
[Round "09"]
[TimeControl "180+1"]
[Date "2022.03.09"]
[WhiteClock "0:00:05"]
[BlackClock "0:00:15"]

1. d4 {[%clk 0:03:00]}  Nf6 {[%clk 0:02:59]} 2. c4 {[%clk 0:02:59]}  g6 {[%clk 0:02:59]} 3. Nc3 {[%clk 0:02:58]}  Bg7 {[%clk 0:02:59]} 4. e4 {[%clk 0:02:58]}  d6 {[%clk 0:03:00]} 5. f3 {[%clk 0:02:59]}  O-O {[%clk 0:03:00]} 6. Be3 {[%clk 0:02:59]}  e5 {[%clk 0:03:00]} 7. Nge2 {[%clk 0:02:59]}  c6 {[%clk 0:02:58]} 8. Qd2 {[%clk 0:02:58]}  Nbd7 {[%clk 0:02:57]} 9. O-O-O {[%clk 0:02:52]}  a6 {[%clk 0:02:57]} 10. g4 {[%clk 0:02:37]}  exd4 {[%clk 0:02:32]} 11. Nxd4 {[%clk 0:02:35]}  Ne5 {[%clk 0:02:31]} 12. Be2 {[%clk 0:02:31]}  c5 {[%clk 0:02:27]} 13. Nc2 {[%clk 0:02:27]}  Be6 {[%clk 0:02:26]} 14. b3 {[%clk 0:02:10]}  b5 {[%clk 0:02:25]} 15. cxb5 {[%clk 0:01:36]}  axb5 {[%clk 0:02:25]} 16. h4 {[%clk 0:01:27]}  b4 {[%clk 0:02:14]} 17. Na4 {[%clk 0:01:23]}  Rxa4 {[%clk 0:02:14]} 18. bxa4 {[%clk 0:01:23]}  Bxa2 {[%clk 0:02:14]} 19. h5 {[%clk 0:01:17]}  Qa5 {[%clk 0:01:54]} 20. Bh6 {[%clk 0:01:08]}  Qxa4 {[%clk 0:01:47]} 21. hxg6 {[%clk 0:01:01]}  fxg6 {[%clk 0:00:28]} 22. Bxg7 {[%clk 0:00:59]}  Kxg7 {[%clk 0:00:28]} 23. Qh6+ {[%clk 0:00:59]}  Kg8 {[%clk 0:00:28]} 24. Rxd6 {[%clk 0:00:57]}  b3 {[%clk 0:00:28]} 25. Rxf6 {[%clk 0:00:09]}  Rxf6 {[%clk 0:00:20]} 26. Qxh7+ {[%clk 0:00:09]}  Kf8 {[%clk 0:00:20]} 27. Qc7 {[%clk 0:00:09]}  Nf7 {[%clk 0:00:17]} 28. Qxc5+ {[%clk 0:00:07]}  Kg7 {[%clk 0:00:17]} 29. g5 {[%clk 0:00:06]}  Rf4 {[%clk 0:00:17]} 30. Qd4+ {[%clk 0:00:04]}  Qxd4 {[%clk 0:00:16]} 31. Nxd4 {[%clk 0:00:05]}  Ne5 {[%clk 0:00:15]} 32. Ne6+ {[%clk 0:00:04]}  Kf7 {[%clk 0:00:15]} 33. Nxf4 {[%clk 0:00:05]}  Ke7 {[%clk 0:00:14]} 34. Kb2 {[%clk 0:00:06]}  Kd6 {[%clk 0:00:14]} 35. Rh6 {[%clk 0:00:06]}  Kc5 {[%clk 0:00:14]} 36. Nxg6 {[%clk 0:00:06]}  Kd4 {[%clk 0:00:15]} 37. Nf4 {[%clk 0:00:05]} 1-0


[Site "https://www.chess.com"]

[Event "Titled Tuesday Blitz March 08 Early 2022"]
[White "Papasimakopoulos, Alexandros"]
[Black "Artemenko, Oleg"]
[WhiteFideId "4244125"]
[BlackFideId "14201798"]
[WhiteElo "2340"]
[BlackElo "2287"]
[Result "1-0"]
[Round "09"]
[TimeControl "180+1"]
[Date "2022.03.08"]
[WhiteClock "0:01:13"]
[BlackClock "0:01:44"]

1. c4 {[%clk 0:02:45]}  Nf6 {[%clk 0:02:59]} 2. d4 {[%clk 0:02:45]}  e6 {[%clk 0:02:59]} 3. Nc3 {[%clk 0:02:45]}  d5 {[%clk 0:02:59]} 4. cxd5 {[%clk 0:02:45]}  exd5 {[%clk 0:02:59]} 5. Bg5 {[%clk 0:02:45]}  Bb4 {[%clk 0:02:57]} 6. e3 {[%clk 0:02:45]}  O-O {[%clk 0:02:57]} 7. Bd3 {[%clk 0:02:45]}  c5 {[%clk 0:02:56]} 8. a3 {[%clk 0:02:43]}  Bxc3+ {[%clk 0:02:56]} 9. bxc3 {[%clk 0:02:44]}  Qa5 {[%clk 0:02:55]} 10. Qd2 {[%clk 0:02:24]}  Nbd7 {[%clk 0:02:49]} 11. Ne2 {[%clk 0:02:18]}  b6 {[%clk 0:02:44]} 12. O-O {[%clk 0:02:16]}  Ba6 {[%clk 0:02:44]} 13. Bxa6 {[%clk 0:02:15]}  Qxa6 {[%clk 0:02:45]} 14. f3 {[%clk 0:02:11]}  Rfe8 {[%clk 0:02:34]} 15. Bh4 {[%clk 0:02:11]}  Qc4 {[%clk 0:02:28]} 16. Bf2 {[%clk 0:02:10]}  Re7 {[%clk 0:02:26]} 17. Ng3 {[%clk 0:02:09]}  Rae8 {[%clk 0:02:25]} 18. Nf5 {[%clk 0:02:06]}  Re6 {[%clk 0:02:25]} 19. Bg3 {[%clk 0:02:06]}  Nf8 {[%clk 0:02:21]} 20. Nd6 {[%clk 0:02:02]}  Rd8 {[%clk 0:02:20]} 21. Nxc4 {[%clk 0:02:02]}  dxc4 {[%clk 0:02:17]} 22. e4 {[%clk 0:01:56]}  Ng6 {[%clk 0:02:10]} 23. d5 {[%clk 0:01:56]}  Ree8 {[%clk 0:02:10]} 24. a4 {[%clk 0:01:55]}  Nd7 {[%clk 0:02:07]} 25. a5 {[%clk 0:01:52]}  b5 {[%clk 0:02:05]} 26. a6 {[%clk 0:01:52]}  f5 {[%clk 0:02:02]} 27. Bc7 {[%clk 0:01:36]}  Rc8 {[%clk 0:01:59]} 28. exf5 {[%clk 0:01:37]}  Ne7 {[%clk 0:01:59]} 29. d6 {[%clk 0:01:30]}  Nf6 {[%clk 0:01:45]} 30. d7 {[%clk 0:01:23]}  Rxc7 {[%clk 0:01:45]} 31. dxe8=Q+ {[%clk 0:01:23]}  Nxe8 {[%clk 0:01:46]} 32. Qd8 {[%clk 0:01:19]}  Kf7 {[%clk 0:01:45]} 33. Rfe1 {[%clk 0:01:19]}  b4 {[%clk 0:01:45]} 34. Rad1 {[%clk 0:01:14]}  b3 {[%clk 0:01:44]} 35. Rd7 {[%clk 0:01:14]}  b2 {[%clk 0:01:44]} 36. Qxe7+ {[%clk 0:01:13]} 1-0


[Site "https://www.chess.com"]

[Event "Titled Tuesday Blitz March 08 Early 2022"]
[White "Perez Gormaz, Matias"]
[Black "Rustemov, Alexander"]
[WhiteFideId "3406342"]
[BlackFideId "4119002"]
[WhiteElo "2327"]
[BlackElo "2761"]
[Result "0-1"]
[Round "09"]
[TimeControl "180+1"]
[Date "2022.03.09"]
[WhiteClock "0:00:02"]
[BlackClock "0:00:08"]

1. e4 {[%clk 0:03:00]}  e6 {[%clk 0:02:58]} 2. d4 {[%clk 0:03:00]}  d5 {[%clk 0:02:58]} 3. Nc3 {[%clk 0:03:01]}  Bb4 {[%clk 0:02:57]} 4. e5 {[%clk 0:02:59]}  c5 {[%clk 0:02:57]} 5. a3 {[%clk 0:02:59]}  Bxc3+ {[%clk 0:02:56]} 6. bxc3 {[%clk 0:03:00]}  Ne7 {[%clk 0:02:56]} 7. Qg4 {[%clk 0:03:01]}  O-O {[%clk 0:02:56]} 8. Bd3 {[%clk 0:03:00]}  Qa5 {[%clk 0:02:56]} 9. Bd2 {[%clk 0:02:57]}  Nbc6 {[%clk 0:02:53]} 10. Qh5 {[%clk 0:02:47]}  h6 {[%clk 0:02:49]} 11. Nf3 {[%clk 0:02:41]}  c4 {[%clk 0:02:45]} 12. Be2 {[%clk 0:02:40]}  Qa4 {[%clk 0:02:42]} 13. Bd1 {[%clk 0:02:29]}  f6 {[%clk 0:02:41]} 14. O-O {[%clk 0:01:51]}  Bd7 {[%clk 0:02:36]} 15. Re1 {[%clk 0:01:46]}  fxe5 {[%clk 0:02:21]} 16. Nxe5 {[%clk 0:01:38]}  Rf5 {[%clk 0:02:17]} 17. Qh4 {[%clk 0:01:26]}  Nxe5 {[%clk 0:02:08]} 18. Qxe7 {[%clk 0:01:25]}  Ng6 {[%clk 0:01:56]} 19. Qd6 {[%clk 0:01:23]}  Rf6 {[%clk 0:01:43]} 20. Bg4 {[%clk 0:01:11]}  Re8 {[%clk 0:01:28]} 21. Rab1 {[%clk 0:01:09]}  b6 {[%clk 0:01:27]} 22. Qc7 {[%clk 0:00:45]}  Re7 {[%clk 0:01:14]} 23. Bh5 {[%clk 0:00:36]}  Kh7 {[%clk 0:01:06]} 24. Qd6 {[%clk 0:00:33]}  Ref7 {[%clk 0:01:05]} 25. Re2 {[%clk 0:00:13]}  Qxc2 {[%clk 0:01:01]} 26. Rbe1 {[%clk 0:00:14]}  Qf5 {[%clk 0:00:58]} 27. Bxg6+ {[%clk 0:00:08]}  Rxg6 {[%clk 0:00:56]} 28. g3 {[%clk 0:00:07]}  Qd3 {[%clk 0:00:44]} 29. Qe5 {[%clk 0:00:04]}  Rgf6 {[%clk 0:00:40]} 30. Qe3 {[%clk 0:00:04]}  Rf3 {[%clk 0:00:37]} 31. Qe5 {[%clk 0:00:02]}  Qf5 {[%clk 0:00:28]} 32. Qxf5+ {[%clk 0:00:02]}  R7xf5 {[%clk 0:00:27]} 33. Bf4 {[%clk 0:00:03]}  Rxc3 {[%clk 0:00:27]} 34. Ra2 {[%clk 0:00:01]}  Rd3 {[%clk 0:00:20]} 35. Be5 {[%clk 0:00:02]}  Rff3 {[%clk 0:00:19]} 36. a4 {[%clk 0:00:02]}  a6 {[%clk 0:00:17]} 37. Rb1 {[%clk 0:00:02]}  Rb3 {[%clk 0:00:15]} 38. Rba1 {[%clk 0:00:01]}  g5 {[%clk 0:00:14]} 39. Kg2 {[%clk 0:00:01]}  g4 {[%clk 0:00:14]} 40. h3 {[%clk 0:00:02]}  h5 {[%clk 0:00:14]} 41. hxg4 {[%clk 0:00:02]}  hxg4 {[%clk 0:00:15]} 42. Rh1+ {[%clk 0:00:03]}  Kg6 {[%clk 0:00:14]} 43. Rh4 {[%clk 0:00:04]}  Kf5 {[%clk 0:00:14]} 44. Rh5+ {[%clk 0:00:05]}  Ke4 {[%clk 0:00:14]} 45. Rg5 {[%clk 0:00:05]}  Kd3 {[%clk 0:00:13]} 46. Rxg4 {[%clk 0:00:05]}  Rf7 {[%clk 0:00:10]} 47. Rg8 {[%clk 0:00:03]}  c3 {[%clk 0:00:10]} 48. Rh8 {[%clk 0:00:03]}  c2 {[%clk 0:00:10]} 49. Rh1 {[%clk 0:00:03]}  Rb1 {[%clk 0:00:10]} 50. Ra3+ {[%clk 0:00:03]}  Kc4 {[%clk 0:00:09]} 51. Ra1 {[%clk 0:00:01]}  Rxa1 {[%clk 0:00:08]} 52. Rxa1 {[%clk 0:00:01]}  Kb3 {[%clk 0:00:09]} 53. Bf4 {[%clk 0:00:02]}  Bxa4 {[%clk 0:00:07]} 54. Kf3 {[%clk 0:00:01]}  b5 {[%clk 0:00:08]} 55. Ke2 {[%clk 0:00:01]}  Kb2 {[%clk 0:00:08]} 56. Kd2 {[%clk 0:00:02]}  Kxa1 {[%clk 0:00:08]} 0-1


[Site "https://www.chess.com"]

[Event "Titled Tuesday Blitz March 08 Early 2022"]
[White "Petrova, Irina"]
[Black "Politov, Pavel Y."]
[WhiteFideId "14124122"]
[BlackFideId "24110515"]
[WhiteElo "1993"]
[BlackElo "2090"]
[Result "1-0"]
[Round "09"]
[TimeControl "180+1"]
[Date "2022.03.09"]
[WhiteClock "0:01:47"]
[BlackClock "0:00:34"]

1. e4 {[%clk 0:03:00]}  c5 {[%clk 0:02:56]} 2. Nf3 {[%clk 0:03:00]}  d6 {[%clk 0:02:56]} 3. Bb5+ {[%clk 0:03:00]}  Nd7 {[%clk 0:02:55]} 4. O-O {[%clk 0:03:00]}  Nf6 {[%clk 0:02:55]} 5. Re1 {[%clk 0:02:59]}  a6 {[%clk 0:02:55]} 6. Bf1 {[%clk 0:02:59]}  g6 {[%clk 0:02:48]} 7. c3 {[%clk 0:02:59]}  Bg7 {[%clk 0:02:47]} 8. d4 {[%clk 0:02:59]}  e6 {[%clk 0:02:45]} 9. e5 {[%clk 0:02:45]}  dxe5 {[%clk 0:02:42]} 10. dxe5 {[%clk 0:02:46]}  Nd5 {[%clk 0:02:41]} 11. c4 {[%clk 0:02:44]}  Ne7 {[%clk 0:02:35]} 12. Nc3 {[%clk 0:02:40]}  Nc6 {[%clk 0:02:29]} 13. Ne4 {[%clk 0:02:29]}  O-O {[%clk 0:02:23]} 14. Bg5 {[%clk 0:02:20]}  Qc7 {[%clk 0:02:17]} 15. Nf6+ {[%clk 0:02:16]}  Kh8 {[%clk 0:01:46]} 16. Nxd7 {[%clk 0:02:09]}  Bxd7 {[%clk 0:01:43]} 17. Bf6 {[%clk 0:02:02]}  Bxf6 {[%clk 0:01:38]} 18. exf6 {[%clk 0:02:03]}  h6 {[%clk 0:00:58]} 19. Qd2 {[%clk 0:02:00]}  Kh7 {[%clk 0:00:58]} 20. Qe3 {[%clk 0:01:55]}  b6 {[%clk 0:00:52]} 21. Ng5+ {[%clk 0:01:48]}  hxg5 {[%clk 0:00:48]} 22. Qh3+ {[%clk 0:01:48]}  Kg8 {[%clk 0:00:39]} 23. Qh6 {[%clk 0:01:48]}  Ne7 {[%clk 0:00:34]} 24. Qg7# {[%clk 0:01:47]} 1-0


[Site "https://www.chess.com"]

[Event "Titled Tuesday Blitz March 08 Early 2022"]
[White "Petrovic, Aleksa"]
[Black "Barrientos, Sergio E"]
[WhiteFideId "967629"]
[BlackFideId "4401824"]
[WhiteElo "2245"]
[BlackElo "2397"]
[Result "0-1"]
[Round "09"]
[TimeControl "180+1"]
[Date "2022.03.09"]
[WhiteClock "0:00:05"]
[BlackClock "0:01:08"]

1. d4 {[%clk 0:03:00]}  Nf6 {[%clk 0:02:59]} 2. c4 {[%clk 0:03:00]}  c5 {[%clk 0:02:57]} 3. d5 {[%clk 0:02:58]}  b5 {[%clk 0:02:57]} 4. cxb5 {[%clk 0:02:56]}  a6 {[%clk 0:02:57]} 5. bxa6 {[%clk 0:02:56]}  g6 {[%clk 0:02:56]} 6. Nc3 {[%clk 0:02:56]}  Bg7 {[%clk 0:02:56]} 7. e4 {[%clk 0:02:55]}  O-O {[%clk 0:02:56]} 8. e5 {[%clk 0:02:37]}  Ne8 {[%clk 0:02:55]} 9. Nf3 {[%clk 0:02:37]}  Bxa6 {[%clk 0:02:49]} 10. Bxa6 {[%clk 0:02:36]}  Nxa6 {[%clk 0:02:47]} 11. O-O {[%clk 0:02:36]}  d6 {[%clk 0:02:38]} 12. Re1 {[%clk 0:02:29]}  Nb4 {[%clk 0:02:06]} 13. Bf4 {[%clk 0:02:12]}  c4 {[%clk 0:01:59]} 14. exd6 {[%clk 0:01:49]}  Nxd6 {[%clk 0:01:56]} 15. Qd2 {[%clk 0:00:54]}  Nd3 {[%clk 0:01:53]} 16. Re2 {[%clk 0:00:52]}  Rb8 {[%clk 0:01:48]} 17. b3 {[%clk 0:00:41]}  Nxf4 {[%clk 0:01:42]} 18. Qxf4 {[%clk 0:00:39]}  Bxc3 {[%clk 0:01:42]} 19. Rc1 {[%clk 0:00:39]}  cxb3 {[%clk 0:01:36]} 20. axb3 {[%clk 0:00:32]}  Bf6 {[%clk 0:01:35]} 21. Qh6 {[%clk 0:00:30]}  Nf5 {[%clk 0:01:30]} 22. Qd2 {[%clk 0:00:25]}  Rxb3 {[%clk 0:01:28]} 23. Rce1 {[%clk 0:00:21]}  Rxf3 {[%clk 0:01:25]} 24. gxf3 {[%clk 0:00:21]}  Nd4 {[%clk 0:01:26]} 25. Re3 {[%clk 0:00:19]}  Qxd5 {[%clk 0:01:25]} 26. Qd3 {[%clk 0:00:20]}  Rd8 {[%clk 0:01:22]} 27. Re4 {[%clk 0:00:18]}  Qf5 {[%clk 0:01:20]} 28. f4 {[%clk 0:00:14]}  Ne6 {[%clk 0:01:18]} 29. Qe3 {[%clk 0:00:11]}  Kg7 {[%clk 0:01:15]} 30. Kg2 {[%clk 0:00:11]}  h5 {[%clk 0:01:15]} 31. h3 {[%clk 0:00:10]}  Rc8 {[%clk 0:01:12]} 32. Qf3 {[%clk 0:00:10]}  Rc3 {[%clk 0:01:11]} 33. R1e3 {[%clk 0:00:10]}  Rc2 {[%clk 0:01:08]} 34. Re2 {[%clk 0:00:05]}  Rxe2 {[%clk 0:01:08]} 35. Qxe2 {[%clk 0:00:05]}  Nxf4+ {[%clk 0:01:08]} 0-1


[Site "https://www.chess.com"]

[Event "Titled Tuesday Blitz March 08 Early 2022"]
[White "Prohorov, Olexandr"]
[Black "Kanyamarala, Trisha"]
[WhiteFideId "14105578"]
[BlackFideId "45004722"]
[WhiteElo "1993"]
[BlackElo "2047"]
[Result "0-1"]
[Round "09"]
[TimeControl "180+1"]
[Date "2022.03.09"]
[WhiteClock "0:00:03"]
[BlackClock "0:01:04"]

1. e4 {[%clk 0:01:58]}  c6 {[%clk 0:02:54]} 2. d4 {[%clk 0:01:57]}  d5 {[%clk 0:02:53]} 3. e5 {[%clk 0:01:58]}  Bf5 {[%clk 0:02:53]} 4. Nf3 {[%clk 0:01:58]}  e6 {[%clk 0:02:53]} 5. Be2 {[%clk 0:01:59]}  c5 {[%clk 0:02:52]} 6. c4 {[%clk 0:01:56]}  dxc4 {[%clk 0:02:48]} 7. Nc3 {[%clk 0:01:54]}  Nc6 {[%clk 0:02:40]} 8. d5 {[%clk 0:01:54]}  exd5 {[%clk 0:02:39]} 9. Qxd5 {[%clk 0:01:52]}  Nb4 {[%clk 0:02:29]} 10. Qxb7 {[%clk 0:01:26]}  Nc2+ {[%clk 0:02:25]} 11. Kf1 {[%clk 0:01:26]}  Nxa1 {[%clk 0:02:22]} 12. Qc6+ {[%clk 0:01:08]}  Bd7 {[%clk 0:02:21]} 13. Qe4 {[%clk 0:01:07]}  Ne7 {[%clk 0:02:12]} 14. Qb1 {[%clk 0:01:05]}  Bf5 {[%clk 0:01:53]} 15. Qxa1 {[%clk 0:01:04]}  Nc6 {[%clk 0:01:52]} 16. Be3 {[%clk 0:00:56]}  Nd4 {[%clk 0:01:50]} 17. Bxc4 {[%clk 0:00:38]}  Nxf3 {[%clk 0:01:48]} 18. gxf3 {[%clk 0:00:38]}  Bd3+ {[%clk 0:01:47]} 19. Bxd3 {[%clk 0:00:39]}  Qxd3+ {[%clk 0:01:48]} 20. Kg2 {[%clk 0:00:39]}  Be7 {[%clk 0:01:48]} 21. Rd1 {[%clk 0:00:39]}  Qg6+ {[%clk 0:01:47]} 22. Kf1 {[%clk 0:00:39]}  O-O {[%clk 0:01:47]} 23. Ne4 {[%clk 0:00:37]}  Rfd8 {[%clk 0:01:45]} 24. Rc1 {[%clk 0:00:36]}  Qh5 {[%clk 0:01:43]} 25. Ke2 {[%clk 0:00:35]}  Qxe5 {[%clk 0:01:41]} 26. b3 {[%clk 0:00:30]}  Qd5 {[%clk 0:01:39]} 27. Qc3 {[%clk 0:00:28]}  Rac8 {[%clk 0:01:24]} 28. Rg1 {[%clk 0:00:28]}  f6 {[%clk 0:01:19]} 29. h4 {[%clk 0:00:20]}  c4 {[%clk 0:01:16]} 30. h5 {[%clk 0:00:09]}  Qd3+ {[%clk 0:01:15]} 31. Qxd3 {[%clk 0:00:08]}  cxd3+ {[%clk 0:01:15]} 32. Kd2 {[%clk 0:00:07]}  Rc2+ {[%clk 0:01:10]} 33. Kd1 {[%clk 0:00:08]}  Rxa2 {[%clk 0:01:08]} 34. Rg3 {[%clk 0:00:06]}  Ra1+ {[%clk 0:01:07]} 35. Kd2 {[%clk 0:00:04]}  Bb4+ {[%clk 0:01:06]} 36. Nc3 {[%clk 0:00:04]}  Ra2+ {[%clk 0:01:06]} 37. Kc1 {[%clk 0:00:03]}  Bxc3 {[%clk 0:01:04]} 0-1


[Site "https://www.chess.com"]

[Event "Titled Tuesday Blitz March 08 Early 2022"]
[White "Rychagov, Andrey"]
[Black "Tarhan, Adar"]
[WhiteFideId "4119932"]
[BlackFideId "34544712"]
[WhiteElo "2500"]
[BlackElo "1802"]
[Result "1-0"]
[Round "09"]
[TimeControl "180+1"]
[Date "2022.03.08"]
[WhiteClock "0:01:31"]
[BlackClock "0:01:13"]

1. d4 {[%clk 0:03:00]}  d5 {[%clk 0:02:59]} 2. c4 {[%clk 0:03:00]}  c6 {[%clk 0:03:00]} 3. Nf3 {[%clk 0:03:00]}  Nf6 {[%clk 0:03:00]} 4. Nc3 {[%clk 0:03:00]}  dxc4 {[%clk 0:03:00]} 5. a4 {[%clk 0:02:59]}  Bf5 {[%clk 0:02:59]} 6. Ne5 {[%clk 0:02:59]}  Nbd7 {[%clk 0:02:59]} 7. Nxc4 {[%clk 0:02:59]}  e6 {[%clk 0:02:58]} 8. Bg5 {[%clk 0:02:47]}  Bb4 {[%clk 0:02:52]} 9. e3 {[%clk 0:02:46]}  h6 {[%clk 0:02:47]} 10. Bh4 {[%clk 0:02:42]}  O-O {[%clk 0:02:46]} 11. Be2 {[%clk 0:02:40]}  Qc7 {[%clk 0:02:31]} 12. O-O {[%clk 0:02:34]}  a5 {[%clk 0:02:27]} 13. f3 {[%clk 0:02:29]}  Bg6 {[%clk 0:02:17]} 14. Bg3 {[%clk 0:02:20]}  Qd8 {[%clk 0:02:04]} 15. e4 {[%clk 0:02:18]}  Nb6 {[%clk 0:01:58]} 16. Ne5 {[%clk 0:02:15]}  Nbd7 {[%clk 0:01:56]} 17. Nxg6 {[%clk 0:02:14]}  fxg6 {[%clk 0:01:56]} 18. Bc4 {[%clk 0:02:14]}  Qe7 {[%clk 0:01:54]} 19. Qb3 {[%clk 0:02:13]}  Rfe8 {[%clk 0:01:53]} 20. Na2 {[%clk 0:02:12]}  Nb6 {[%clk 0:01:52]} 21. Be2 {[%clk 0:02:05]}  c5 {[%clk 0:01:36]} 22. Nxb4 {[%clk 0:02:02]}  cxb4 {[%clk 0:01:37]} 23. Rac1 {[%clk 0:01:57]}  Rac8 {[%clk 0:01:35]} 24. Bb5 {[%clk 0:01:54]}  Red8 {[%clk 0:01:34]} 25. Be5 {[%clk 0:01:53]}  Kh7 {[%clk 0:01:32]} 26. Qe3 {[%clk 0:01:47]}  Nfd7 {[%clk 0:01:26]} 27. Bc7 {[%clk 0:01:44]}  Rf8 {[%clk 0:01:22]} 28. d5 {[%clk 0:01:38]}  Na8 {[%clk 0:01:18]} 29. d6 {[%clk 0:01:33]}  Qf6 {[%clk 0:01:13]} 30. Bxd7 {[%clk 0:01:31]} 1-0


[Site "https://www.chess.com"]